fUSD/lending_fUSD_20240905
["ID","MTS","AMOUNT","RATE_DAILY","PERIOD"]
[337265292,1725557438994,-500.0,0.00014896,2]
[337265293,1725557439004,-500.0,0.00014896,2]
[337265294,1725557439013,-500.0,0.00014896,2]
[337265295,1725557439023,-500.0,0.00014896,2]
[337265296,1725557439033,-500.0,0.00014896,2]
[337265297,1725557439043,-500.0,0.00014896,2]
[337265298,1725557439053,-500.0,0.00014896,2]
[337265299,1725557439062,-500.0,0.00014896,2]
[337265300,1725557439071,-360.54336408,0.00014896,2]
[337265301,1725557439081,-500.0,0.00014896,2]
[337265302,1725557439091,-686.34,0.00014896,2]
[337265303,1725557439100,-1623.36,0.00014896,2]
[337265304,1725557439110,-500.0,0.00014896,2]
[337265305,1725557439119,-785.75,0.00014896,2]
[337265306,1725557439129,-500.0,0.00014896,2]
[337265307,1725557439139,-1730.23,0.00014896,2]
[337265308,1725557439148,-508.03,0.00014896,2]
[337265309,1725557439157,-8362.13,0.00014896,2]
[337265310,1725557439167,-500.0,0.00014896,2]
[337265311,1725557439177,-500.0,0.00014896,2]
[337265312,1725557439187,-1025.65,0.00014896,2]
[337265313,1725557439199,-519.86,0.00014896,2]
[337265314,1725557439210,-500.0,0.00014896,2]
[337265315,1725557439219,-500.0,0.00014896,2]
[337265316,1725557439228,-2550.79,0.00014896,2]
[337265317,1725557439238,-3431.45,0.00014896,2]
[337265318,1725557439247,-500.0,0.00014896,2]
[337265319,1725557439257,-4434.24,0.00014896,2]
[337265320,1725557439267,-500.0,0.00014896,2]
[337265321,1725557439276,-501.48193934,0.00014896,2]
[337265322,1725557439285,-500.0,0.00014896,2]
[337265323,1725557439295,-500.0,0.00014896,2]
[337265324,1725557439305,-500.0,0.00014896,2]
[337265325,1725557439317,-500.0,0.00014896,2]
[337265326,1725557439327,-500.0,0.00014896,2]
[337265327,1725557439336,-1151.75,0.00014896,2]
[337265328,1725557439347,-500.0,0.00014896,2]
[337265329,1725557439358,-500.92110983,0.00014896,2]
[337265330,1725557439368,-550.52696643,0.00014896,2]
[337265331,1725557439378,-953.5,0.00014896,2]
[337265332,1725557439387,-500.0,0.00014896,2]
[337265333,1725557439400,-500.0,0.00014896,2]
[337265334,1725557439410,-2234.31,0.00014896,2]
[337265335,1725557439420,-2642.23,0.00014896,2]
[337265336,1725557439430,-500.0,0.00014896,2]
[337265337,1725557439440,-501.02643921,0.00014896,2]
[337265338,1725557439452,-500.74338322,0.00014896,2]
[337265339,1725557439463,-500.0,0.00014896,2]
[337265340,1725557439473,-875.83,0.00014896,2]
[337265341,1725557439483,-500.80992033,0.00014896,2]
[337265342,1725557439492,-500.0,0.00014896,2]
[337265344,1725557439502,-3194.2,0.00014896,2]
[337265345,1725557439512,-500.0,0.00014896,2]
[337265346,1725557439521,-2620.21024211,0.00014896,2]
[337265347,1725557439544,-468.87,0.00014896,2]
[337265348,1725557439556,-1777.0,0.00014896,2]
[337265349,1725557439789,-231.22975789,0.00014896,2]
[337265350,1725557439798,-409.8105624,0.00014896,2]
[337265351,1725557439810,-90.1894376,0.00014896,2]
[337265352,1725557439819,-500.0,0.00014896,2]
[337265353,1725557439828,-437.04695927,0.00014896,2]
[337265354,1725557439850,-62.95304073,0.00014896,2]
[337265355,1725557439859,-219.04695927,0.00014896,2]
[337265356,1725557439871,-386.4255337,0.00014896,2]
[337265357,1725557439879,-454.35105264,0.00014896,2]
[337265358,1725557439891,-1165.53894736,0.00014896,2]
[337265359,1725557439900,-246.06105264,0.00014896,2]
[337265360,1725557439911,-253.93894736,0.00014896,2]
[337265361,1725557439920,-840.63730606,0.00014896,2]
[337265362,1725557440081,-362.54378114,0.00014896,2]
[337265363,1725557440093,-1050.8189128,0.00014896,2]
[337265364,1725557440102,-1772.44,0.00014896,2]
[337265365,1725557440111,-500.28401699,0.00014896,2]
[337265366,1725557440121,-500.0,0.00014896,2]
[337265367,1725557440130,-500.0,0.00014896,2]
[337265368,1725557440139,-500.0,0.00014896,2]
[337265369,1725557440148,-500.0,0.00014896,2]
[337265370,1725557440158,-3350.19,0.00014896,2]
[337265371,1725557440167,-345.64845894,0.00014896,2]
[337265372,1725557440176,-500.94389118,0.00014896,2]
[337265373,1725557440185,-575.19,0.00014896,2]
[337265374,1725557440194,-500.80000494,0.00014896,2]
[337265375,1725557440204,-500.0,0.00014896,2]
[337265376,1725557440213,-500.95107206,0.00014896,2]
[337265377,1725557440222,-636.82,0.00014896,2]
[337265378,1725557440233,-829.95,0.00014896,2]
[337265379,1725557440242,-501.17590525,0.00014896,2]
[337265380,1725557440251,-500.0,0.00014896,2]
[337265381,1725557440260,-500.39696988,0.00014896,2]
[337265382,1725557440269,-500.0,0.00014896,2]
[337265383,1725557440278,-500.0,0.00014896,2]
[337265384,1725557440288,-500.0,0.00014896,2]
[337265385,1725557440297,-500.0,0.00014896,2]
[337265386,1725557440306,-512.55132224,0.00014896,2]
[337265387,1725557440317,-500.0,0.00014896,2]
[337265388,1725557440330,-524.57116823,0.00014896,2]
[337265389,1725557440339,-594.79,0.00014896,2]
[337265390,1725557440349,-1111.46,0.00014896,2]
[337265391,1725557440358,-531.82,0.00014896,2]
[337265392,1725557440369,-2849.24,0.00014896,2]
[337265393,1725557440379,-1022.3,0.00014896,2]
[337265394,1725557440388,-500.0,0.00014896,2]
[337265395,1725557440398,-500.62556767,0.00014896,2]
[337265396,1725557440408,-500.0,0.00014896,2]
[337265397,1725557440418,-501.68889384,0.00014897,2]
[337265398,1725557440427,-507.9250703,0.00014897,2]
[337265399,1725557440435,-500.0,0.00014897,2]
[337265400,1725557440445,-502.0162477,0.00014897,2]
[337265401,1725557440457,-500.0,0.00014897,2]
[337265402,1725557440466,-500.0,0.00014897,2]
[337265403,1725557440476,-500.0,0.00014897,2]
[337265404,1725557440485,-399.1349323,0.00014897,2]
[337265405,1725557440495,-501.39715689,0.00014897,2]
[337265406,1725557440504,-500.0,0.00014897,2]
[337265407,1725557440513,-432.61902247,0.00014897,2]
[337265408,1725557440523,-500.0,0.00014897,2]
[337265409,1725557440532,-502.16653893,0.00014897,2]
[337265410,1725557440541,-500.0,0.00014897,2]
[337265411,1725557440551,-502.05172069,0.00014897,2]
[337265418,1725557440561,-503.48751593,0.00014897,2]
[337265421,1725557440765,-501.63793447,0.00014897,2]
[337265423,1725557440774,-592.01552281,0.00014897,2]
[337265425,1725557440784,-500.0,0.00014897,2]
[337265427,1725557440793,-500.0,0.00014897,2]
[337265429,1725557440802,-500.0,0.00014897,2]
[337265431,1725557440811,-16673.83,0.00014897,2]
[337265433,1725557440820,-500.0,0.00014897,2]
[337265435,1725557440830,-270.15712164,0.00014897,2]
[337265437,1725557440840,-500.0,0.00014897,2]
[337265438,1725557440849,-317.88567554,0.00014897,2]
[337265440,1725557440858,-500.0,0.00014897,2]
[337265442,1725557440867,-500.0,0.00014897,2]
[337265444,1725557440876,-500.0,0.00014897,2]
[337265446,1725557440885,-182.04320805,0.00014897,2]
[337265448,1725557440894,-365.97,0.00014897,2]
[337265450,1725557440903,-500.0,0.00014897,2]
[337265452,1725557440912,-500.0,0.00014897,2]
[337265454,1725557440921,-500.0,0.00014897,2]
[337265456,1725557440930,-500.0,0.00014897,2]
[337265458,1725557440940,-500.0,0.00014897,2]
[337265460,1725557440951,-500.0,0.00014897,2]
[337265462,1725557440960,-436.62,0.00014897,2]
[337265463,1725557440969,-500.0,0.00014897,2]
[337265465,1725557440978,-500.0,0.00014897,2]
[337265467,1725557440987,-500.0,0.00014897,2]
[337265469,1725557440996,-500.0,0.00014897,2]
[337265471,1725557441005,-500.0,0.00014897,2]
[337265473,1725557441014,-182.04320805,0.00014898,2]
[337265475,1725557441024,-500.0,0.00014898,2]
[337265477,1725557441033,-500.0,0.00014898,2]
[337265479,1725557441042,-500.0,0.00014898,2]
[337265481,1725557441051,-500.37218615,0.00014898,2]
[337265483,1725557441060,-500.0,0.00014898,2]
[337265484,1725557441069,-500.0,0.00014898,2]
[337265486,1725557441078,-500.0,0.00014898,2]
[337265488,1725557441088,-504.41243841,0.00014898,2]
[337265490,1725557441097,-500.0,0.00014898,2]
[337265492,1725557441106,-501.17512043,0.00014898,2]
[337265494,1725557441115,-395.64293607,0.00014898,2]
[337265496,1725557441124,-500.0,0.00014898,2]
[337265497,1725557441133,-500.88069249,0.00014898,2]
[337265498,1725557441143,-500.0,0.00014898,2]
[337265499,1725557441152,-500.0,0.00014898,2]
[337265500,1725557441161,-500.0,0.00014898,2]
[337265501,1725557441170,-500.0,0.00014898,2]
[337265502,1725557441179,-501.10306472,0.00014898,2]
[337265503,1725557441189,-500.0,0.00014898,2]
[337265504,1725557441199,-501.08205316,0.00014898,2]
[337265505,1725557441207,-500.0,0.00014898,2]
[337265506,1725557441216,-500.0,0.00014898,2]
[337265507,1725557441226,-500.0,0.00014898,2]
[337265508,1725557441235,-500.0,0.00014898,2]
[337265509,1725557441245,-500.0,0.00014898,2]
[337265510,1725557441254,-501.61374369,0.00014898,2]
[337265511,1725557441265,-500.0,0.00014898,2]
[337265512,1725557441276,-500.0,0.00014898,2]
[337265513,1725557441286,-501.43473026,0.00014898,2]
[337265514,1725557441296,-501.07920301,0.00014898,2]
[337265515,1725557441305,-500.0,0.00014898,2]
[337265516,1725557441314,-501.70266253,0.00014898,2]
[337265517,1725557441325,-500.0,0.00014898,2]
[337265518,1725557441335,-556.94,0.00014898,2]
[337265519,1725557441344,-598.85,0.00014898,2]
[337265520,1725557441353,-505.21427753,0.00014898,2]
[337265521,1725557441362,-501.73359952,0.00014898,2]
[337265522,1725557441372,-500.0,0.00014898,2]
[337265523,1725557441381,-500.0,0.00014898,2]
[337265524,1725557441391,-500.0,0.00014898,2]
[337265525,1725557441402,-501.50116703,0.00014898,2]
[337265526,1725557441412,-501.38130638,0.00014898,2]
[337265527,1725557441421,-501.11264198,0.00014898,2]
[337265528,1725557441430,-500.0,0.00014898,2]
[337265529,1725557441440,-500.0,0.00014898,2]
[337265530,1725557441449,-480.0,0.00014898,2]
[337265531,1725557441459,-568.63,0.00014898,2]
[337265532,1725557441469,-500.92129101,0.00014898,2]
[337265533,1725557441478,-500.0,0.00014898,2]
[337265534,1725557441488,-500.0,0.00014898,2]
[337265535,1725557441497,-500.0,0.00014898,2]
[337265536,1725557441506,-500.0,0.00014898,2]
[337265537,1725557441515,-496.42574134,0.00014898,2]
[337265538,1725557441525,-500.0,0.00014898,2]
[337265539,1725557441535,-500.0,0.00014898,2]
[337265540,1725557441545,-500.0,0.00014898,2]
[337265541,1725557441554,-500.91094146,0.00014898,2]
[337265542,1725557441563,-500.0,0.00014898,2]
[337265543,1725557441573,-500.0,0.00014898,2]
[337265544,1725557441583,-500.0,0.00014898,2]
[337265545,1725557441592,-556.65,0.00014898,2]
[337265546,1725557441602,-581.06,0.00014898,2]
[337265547,1725557441611,-566.03,0.00014898,2]
[337265548,1725557441620,-500.0,0.00014898,2]
[337265549,1725557441630,-500.0,0.00014898,2]
[337265550,1725557441639,-501.76486593,0.00014898,2]
[337265551,1725557441648,-500.0,0.00014898,2]
[337265552,1725557441658,-500.0,0.00014898,2]
[337265553,1725557441667,-500.0,0.00014898,2]
[337265554,1725557441678,-559.39,0.00014898,2]
[337265555,1725557441687,-501.03308122,0.00014898,2]
[337265556,1725557441698,-500.0,0.00014898,2]
[337265557,1725557441707,-583.54,0.00014898,2]
[337265558,1725557441716,-501.5455433,0.00014898,2]
[337265559,1725557441726,-501.61668468,0.00014898,2]
[337265560,1725557441737,-588.0817553,0.00014898,2]
[337265561,1725557441749,-500.0,0.00014898,2]
[337265562,1725557441760,-500.0,0.00014898,2]
[337265563,1725557441771,-500.0,0.00014898,2]
[337265564,1725557441783,-500.0,0.00014898,2]
[337265565,1725557441794,-500.0,0.00014898,2]
[337265566,1725557441803,-500.94193946,0.00014898,2]
[337265567,1725557441814,-500.0,0.00014898,2]
[337265568,1725557441825,-500.0,0.00014898,2]
[337265569,1725557441835,-500.0,0.00014898,2]
[337265570,1725557441845,-500.0,0.00014898,2]
[337265571,1725557441855,-500.0,0.00014898,2]
[337265572,1725557441864,-500.0,0.00014898,2]
[337265573,1725557441874,-500.0,0.00014898,2]
[337265574,1725557441885,-166.59234619,0.00014898,2]
[337265575,1725557441895,-191.90959603,0.00014898,2]
[337265576,1725557441904,-440.34628454,0.00014898,2]
[337265577,1725557441913,-500.0,0.00014898,2]
[337265578,1725557441922,-500.0,0.00014898,2]
[337265579,1725557441931,-500.0,0.00014898,2]
[337265580,1725557441940,-500.0,0.00014898,2]
[337265581,1725557441949,-500.0,0.00014898,2]
[337265582,1725557441958,-500.0,0.00014898,2]
[337265583,1725557441967,-500.0,0.00014898,2]
[337265584,1725557441976,-500.0,0.00014898,2]
[337265585,1725557441985,-500.0,0.00014898,2]
[337265586,1725557441994,-500.0,0.00014898,2]
[337265587,1725557442003,-500.0,0.00014898,2]
[337265588,1725557442012,-501.1526041,0.00014898,2]
[337265589,1725557442021,-500.0,0.00014898,2]
[337265590,1725557442031,-500.0,0.00014898,2]
[337265591,1725557442040,-500.0,0.00014898,2]
[337265592,1725557442049,-500.0,0.00014898,2]
[337265593,1725557442058,-500.0,0.00014898,2]
[337265594,1725557442067,-500.87762807,0.00014898,2]
[337265595,1725557442076,-313.38486919,0.00014898,2]
[337265596,1725557442085,-500.0,0.00014898,2]
[337265597,1725557442095,-500.0,0.00014898,2]
[337265598,1725557442104,-504.75717567,0.00014898,2]
[337265599,1725557442113,-500.0,0.00014898,2]
[337265600,1725557442122,-501.6216404,0.00014898,2]
[337265601,1725557442132,-500.0,0.00014898,2]
[337265602,1725557442141,-222.08832292,0.00014898,2]
[337265603,1725557442150,-500.0,0.00014898,2]
[337265604,1725557442159,-500.0,0.00014898,2]
[337265605,1725557442168,-532.29,0.00014898,2]
[337265606,1725557442177,-550.59,0.00014898,2]
[337265607,1725557442187,-500.0,0.00014898,2]
[337265608,1725557442196,-503.23611496,0.00014898,2]
[337265609,1725557442206,-500.0,0.00014898,2]
[337265610,1725557442215,-500.0,0.00014898,2]
[337265611,1725557442224,-500.0,0.00014898,2]
[337265612,1725557442233,-500.0,0.00014898,2]
[337265613,1725557442243,-506.39,0.00014898,2]
[337265614,1725557442251,-500.0,0.00014898,2]
[337265615,1725557442261,-500.0,0.00014898,2]
[337265616,1725557442270,-528.97,0.00014898,2]
[337265617,1725557442280,-500.0,0.00014898,2]
[337265618,1725557442289,-500.0,0.00014898,2]
[337265619,1725557442298,-500.0,0.00014898,2]
[337265620,1725557442307,-500.0,0.00014898,2]
[337265621,1725557442317,-500.0,0.00014898,2]
[337265622,1725557442330,-501.16046244,0.00014898,2]
[337265623,1725557442340,-217.51730168,0.00014898,2]
[337265624,1725557442349,-500.0,0.00014898,2]
[337265625,1725557442358,-502.86657191,0.00014898,2]
[337265626,1725557442367,-500.0,0.00014898,2]
[337265627,1725557442378,-500.0,0.00014898,2]
[337265628,1725557442387,-500.52877387,0.00014898,2]
[337265629,1725557442397,-502.75106184,0.00014898,2]
[337265630,1725557442407,-500.0,0.00014898,2]
[337265631,1725557442417,-500.0,0.00014898,2]
[337265632,1725557442426,-500.0,0.00014898,2]
[337265633,1725557442435,-519.62,0.00014898,2]
[337265634,1725557442444,-500.0,0.00014898,2]
[337265635,1725557442455,-500.0,0.00014898,2]
[337265636,1725557442464,-504.52538771,0.00014898,2]
[337265638,1725557442474,-204.83902542,0.00014898,2]
[337265639,1725557442483,-500.0,0.00014898,2]
[337265640,1725557442492,-500.39464126,0.00014898,2]
[337265641,1725557442502,-501.44390533,0.00014898,2]
[337265643,1725557442511,-501.03523906,0.00014898,2]
[337265644,1725557442520,-500.0,0.00014898,2]
[337265645,1725557442529,-500.0,0.00014898,2]
[337265646,1725557442538,-500.0,0.00014898,2]
[337265647,1725557442547,-500.0,0.00014898,2]
[337265648,1725557442557,-500.0,0.00014898,2]
[337265649,1725557442566,-644.54,0.00014898,2]
[337265650,1725557442574,-500.0,0.00014898,2]
[337265651,1725557442583,-500.83031537,0.00014898,2]
[337265652,1725557442592,-159.85984813,0.00014898,2]
[337265653,1725557442602,-579.73,0.00014898,2]
[337265654,1725557442611,-500.0,0.00014898,2]
[337265655,1725557442620,-500.0,0.00014898,2]
[337265656,1725557442629,-500.0,0.00014898,2]
[337265657,1725557442639,-501.20060678,0.00014898,2]
[337265660,1725557442648,-500.0,0.00014898,2]
[337265663,1725557442657,-214.16041924,0.00014898,2]
[337265666,1725557442666,-500.0,0.00014898,2]
[337265668,1725557442676,-500.0,0.00014898,2]
[337265670,1725557442685,-500.0,0.00014898,2]
[337265672,1725557442695,-500.0,0.00014898,2]
[337265673,1725557442706,-500.0,0.00014898,2]
[337265674,1725557442716,-677.94,0.00014898,2]
[337265675,1725557442725,-500.0,0.00014898,2]
[337265676,1725557442735,-159.36596831,0.00014898,2]
[337265677,1725557442744,-500.48961191,0.00014898,2]
[337265678,1725557442753,-575.91,0.00014898,2]
[337265679,1725557442762,-500.0,0.00014898,2]
[337265680,1725557442772,-500.57554599,0.00014898,2]
[337265681,1725557442781,-500.58908527,0.00014898,2]
[337265682,1725557442790,-893.78,0.00014898,2]
[337265683,1725557442799,-3790.4,0.00014898,2]
[337265684,1725557442808,-649.56,0.00014898,2]
[337265685,1725557442817,-500.0,0.00014898,2]
[337265686,1725557442827,-500.0,0.00014898,2]
[337265687,1725557442836,-500.0,0.00014898,2]
[337265688,1725557442845,-500.0,0.00014898,2]
[337265689,1725557442854,-500.0,0.00014898,2]
[337265690,1725557442863,-500.0,0.00014898,2]
[337265691,1725557442872,-785.75,0.00014898,2]
[337265692,1725557442881,-744.46,0.00014898,2]
[337265693,1725557442890,-500.0,0.00014898,2]
[337265694,1725557442899,-500.0,0.00014898,2]
[337265695,1725557442908,-672.71,0.00014898,2]
[337265696,1725557442917,-584.40661316,0.00014898,2]
[337265697,1725557442926,-500.0,0.00014898,2]
[337265698,1725557442935,-500.0,0.00014898,2]
[337265699,1725557442944,-500.0,0.00014898,2]
[337265700,1725557442955,-2550.79,0.00014898,2]
[337265701,1725557442964,-500.0,0.00014898,2]
[337265703,1725557442973,-500.0,0.00014898,2]
[337265704,1725557442982,-1631.18,0.00014898,2]
[337265706,1725557442991,-4434.24,0.00014898,2]
[337265708,1725557443001,-500.0,0.00014898,2]
[337265710,1725557443010,-2422.67,0.00014898,2]
[337265711,1725557443019,-500.0,0.00014898,2]
[337265713,1725557443027,-953.5,0.00014898,2]
[337265714,1725557443036,-7035.16,0.00014898,2]
[337265716,1725557443046,-500.0,0.00014898,2]
[337265717,1725557443055,-2642.23,0.00014898,2]
[337265718,1725557443064,-875.83,0.00014898,2]
[337265719,1725557443073,-3194.2,0.00014898,2]
[337265720,1725557443083,-1569.2,0.00014898,2]
[337265721,1725557443093,-500.0,0.00014898,2]
[337265723,1725557443103,-500.0,0.00014898,2]
[337265724,1725557443112,-500.0,0.00014898,2]
[337265726,1725557443122,-448.50290139,0.00014898,2]
[337265727,1725557443132,-500.0,0.00014898,2]
[337265728,1725557443149,-500.0,0.00014898,2]
[337265729,1725557443170,-500.0,0.00014898,2]
[337265730,1725557443181,-500.0,0.00014898,2]
[337265731,1725557443192,-500.0,0.00014898,2]
[337265732,1725557443212,-1048.7,0.00014898,2]
[337265733,1725557443244,-1839.54,0.00014898,2]
[337265734,1725557443254,-500.0,0.00014898,2]
[337265735,1725557443263,-1787.97,0.00014898,2]
[337265736,1725557443272,-500.0,0.00014898,2]
[337265737,1725557443281,-500.0,0.00014898,2]
[337265738,1725557443291,-611.91,0.00014898,2]
[337265739,1725557443300,-500.0,0.00014898,2]
[337265740,1725557443309,-550.67,0.00014898,2]
[337265741,1725557443320,-182.04320805,0.00014898,2]
[337265742,1725557443333,-500.0,0.00014898,2]
[337265743,1725557443342,-500.0,0.00014898,2]
[337265744,1725557443352,-1022.3,0.00014898,2]
[337265745,1725557443362,-4389.3866,0.00014898,2]
[337265746,1725557443372,-440.34628453,0.00014899,2]
[337265747,1725557443381,-182.04320805,0.00014899,2]
[337265748,1725557443391,-78549.7041,0.00014899,2]
[337265749,1725557443402,-1304.3805,0.00014899,2]
[337265750,1725557443412,-3209.8632,0.00014899,2]
[337265751,1725557443421,-326.1077,0.00014899,2]
[337265752,1725557443431,-163.37894835,0.00014899,2]
[337265753,1725557443440,-163.37894835,0.00014899,2]
[337265754,1725557443453,-440.34628453,0.00014899,2]
[337265755,1725557443463,-159.85984811,0.00014899,2]
[337265756,1725557443472,-249.80413749,0.00014899,2]
[337265757,1725557443482,-296.65,0.00014899,2]
[337265758,1725557443491,-182.04320805,0.00014899,2]
[337265759,1725557443500,-440.34628453,0.000149,2]
[337265760,1725557443509,-163.37894835,0.000149,2]
[337265761,1725557443518,-440.34628453,0.000149,2]
[337265762,1725557443527,-159.85984811,0.000149,2]
[337265763,1725557443537,-736.1318623,0.000149,2]
[337265764,1725557443546,-1827.0,0.000149,2]
[337265765,1725557443555,-318.49142461,0.000149,2]
[337265766,1725557443564,-145872.0,0.000149,2]
[337265767,1725557443574,-150.0,0.00014908,2]
[337265768,1725557443584,-1500.0,0.00014916,2]
[337265769,1725557443593,-1500.0,0.00014917,2]
[337265770,1725557443602,-150.0,0.00014951,2]
[337265771,1725557443611,-150.0,0.00014971,2]
[337265772,1725557443621,-211.95809534,0.00014973,2]
[337265773,1725557443630,-500.0,0.00014985,2]
[337265774,1725557443639,-500.0,0.00014985,2]
[337265775,1725557443648,-500.0,0.00014985,2]
[337265776,1725557443657,-500.0,0.00014985,2]
[337265777,1725557443667,-500.0,0.00014985,2]
[337265778,1725557443676,-168.75391456,0.00014985,2]
[337265779,1725557443686,-428.91740793,0.00014985,2]
[337265780,1725557443695,-500.0,0.00014985,2]
[337265781,1725557443708,-500.0,0.00014985,2]
[337265782,1725557443718,-294.28,0.00014985,2]
[337265783,1725557443727,-500.0,0.00014986,2]
[337265784,1725557443736,-500.0,0.00014986,2]
[337265785,1725557443746,-500.0,0.00014986,2]
[337265786,1725557443756,-500.0,0.00014986,2]
[337265787,1725557443766,-500.0,0.00014986,2]
[337265788,1725557443775,-501.94049199,0.00014986,2]
[337265789,1725557443785,-500.0,0.00014986,2]
[337265790,1725557443794,-500.0,0.00014986,2]
[337265791,1725557443804,-500.527785,0.00014986,2]
[337265792,1725557443813,-500.0,0.00014986,2]
[337265793,1725557443822,-500.0,0.00014986,2]
[337265794,1725557443832,-500.0,0.00014986,2]
[337265795,1725557443841,-500.0,0.00014986,2]
[337265796,1725557443851,-500.0,0.00014986,2]
[337265797,1725557443860,-211.01426387,0.00014986,2]
[337265798,1725557443870,-500.0,0.00014986,2]
[337265799,1725557443879,-500.0,0.00014986,2]
[337265800,1725557443888,-518.56602678,0.00014986,2]
[337265801,1725557443898,-435.19344867,0.00014986,2]
[337265802,1725557443907,-500.0,0.00014986,2]
[337265803,1725557443916,-500.0,0.00014986,2]
[337265804,1725557443926,-500.0,0.00014986,2]
[337265805,1725557443935,-500.0,0.00014986,2]
[337265806,1725557443944,-502.37276115,0.00014986,2]
[337265807,1725557443955,-500.0,0.00014986,2]
[337265808,1725557443965,-500.0,0.00014986,2]
[337265809,1725557443974,-500.0,0.00014986,2]
[337265810,1725557443984,-500.0,0.00014986,2]
[337265811,1725557443993,-500.0,0.00014986,2]
[337265812,1725557444003,-625.32,0.00014986,2]
[337265813,1725557444012,-500.0,0.00014986,2]
[337265814,1725557444021,-500.0,0.00014986,2]
[337265815,1725557444030,-500.0,0.00014986,2]
[337265816,1725557444039,-500.0,0.00014986,2]
[337265817,1725557444048,-500.0,0.00014986,2]
[337265818,1725557444057,-500.0,0.00014986,2]
[337265819,1725557444218,-504.08993421,0.00014986,2]
[337265820,1725557444227,-500.0,0.00014986,2]
[337265821,1725557444237,-500.0,0.00014986,2]
[337265822,1725557444246,-500.0,0.00014986,2]
[337265823,1725557444255,-500.0,0.00014986,2]
[337265824,1725557444264,-500.0,0.00014986,2]
[337265825,1725557444274,-500.0,0.00014986,2]
[337265826,1725557444284,-500.0,0.00014986,2]
[337265827,1725557444294,-268.80826781,0.00014986,2]
[337265828,1725557444304,-519.20349473,0.00014986,2]
[337265829,1725557444314,-500.0,0.00014986,2]
[337265830,1725557444326,-529.35509967,0.00014986,2]
[337265831,1725557444335,-500.0,0.00014986,2]
[337265832,1725557444344,-500.0,0.00014986,2]
[337265833,1725557444354,-301.19844501,0.00014986,2]
[337265834,1725557444363,-500.0,0.00014986,2]
[337265835,1725557444372,-500.0,0.00014986,2]
[337265836,1725557444382,-500.0,0.00014986,2]
[337265837,1725557444393,-500.0,0.00014986,2]
[337265838,1725557444403,-501.68399757,0.00014986,2]
[337265839,1725557444412,-500.0,0.00014986,2]
[337265840,1725557444421,-500.0,0.00014986,2]
[337265841,1725557444431,-500.0,0.00014986,2]
[337265842,1725557444440,-500.0,0.00014986,2]
[337265843,1725557444449,-500.0,0.00014986,2]
[337265844,1725557444459,-500.0,0.00014986,2]
[337265845,1725557444468,-500.0,0.00014986,2]
[337265846,1725557444478,-500.0,0.00014986,2]
[337265847,1725557444487,-503.5510086,0.00014986,2]
[337265848,1725557444496,-500.0,0.00014986,2]
[337265849,1725557444505,-500.0,0.00014986,2]
[337265850,1725557444514,-500.0,0.00014986,2]
[337265851,1725557444523,-500.0,0.00014986,2]
[337265852,1725557444532,-500.0,0.00014986,2]
[337265853,1725557444541,-500.0,0.00014986,2]
[337265854,1725557444551,-511.2849307,0.00014986,2]
[337265855,1725557444560,-500.0,0.00014986,2]